Cogmind - Beta 16 @@@ ROGUE MODE // 2026.01.23 @ 17:24:41 Player: +Jones Result: Destroyed by G-67 Veteran with Plasma Rifle Performance ------------- Evolutions (6) 3000 Regions Visited (17) 3400 Robots Destroyed (322) 1610 Value Destroyed (14047) 14047 Prototype IDs (42) 840 Alien Tech Used (2) 400 Bonus (4747) 4747 TOTAL SCORE: 28044 Bonus ------- High Alert Combat Kills 2672 Follower Combat Kills 1112 Entered Garrisons 400 Acquired ECA 300 Met Zhirov 300 Friendly Fire -37 Cogmind --------- Core Integrity 0/1150 Matter 132/300 Energy 99/100 System Corruption 15% Temperature Cool (14) Movement Hovering (70) Location -4/Factory Parts ------- > --- POWER (2) -------- (None) > --- PROPULSION (7) --- Improved Gyrokinetic Inverter > --- UTILITY (6) ------ Advanced Sensor Array Hacking Suite > --- WEAPON (4) ------- (None) > --- INVENTORY (5) ---- Dispersion Rifle Cooled Plasma Cannon Kinetic Spear Peak State ------------ > --- POWER ------------ Neutrino Core Multi-Antimatter Reactor > --- PROPULSION ------- Hovering Antigrav-Cooled Exoskeleton Antigrav System > --- UTILITY ---------- Armored Scrap Engine Huge Storage Unit Improved Light Armor Plating Centrium Medium Armor Plating Improved System Guard > --- WEAPON ----------- Hvy. EM Construct/C Power Sword Kinetic Spear > --- INVENTORY -------- Wheel Improved Cooling System Improved Cooling System High-capacity Storage Unit Matter Compressor Machine Analyzer Advanced Terrain Scanner Encrypted Comm Array Improved Salvage Targeting Computer Experimental Targeting Computer Core Analyzer Improved Kinecellerator Active Sensor Spoofer Hacking Suite Advanced System Shield Dynamic Insulation System Cooled Plasma Cannon Mini Grenade Launcher Rocket Array Thermoblaster Thermoblaster Improved Plasma Cutter Dirty Bomb Trap Dirty Bomb Trap Dirty Bomb Trap [Rating: 122] Favorites ----------- Power Constructs Engine Improved Ion Engine Power Core Neutrino Core Reactor Constructs Propulsion Light Treads Treads Light Treads Leg Carbon-fiber Leg Wheel Armored Huge Wheel Hover Unit Constructs Utility Huge Storage Unit Device Armored Scrap Engine Storage Huge Storage Unit Processor Experimental Targeting Computer Hackware Hacking Suite Protection Improved Light Armor Plating Weapon Constructs Energy Gun Constructs Energy Cannon Constructs Ballistic Gun Constructs Ballistic Cannon Mini Assault Cannon Launcher Mini Grenade Launcher Special Weapon Mining Laser Impact Weapon Heavy Flail Slashing Weapon Power Sword Piercing Weapon Kinetic Spear Build | -11 -10 -10 -8 -8 -8 -6 -6 -6 -6 -5 -5 -5 -5 -5 -5 -4 -4 ------- Run | Yrd Mat Sub Mat Sto Rec Fac Gar Fac Gar Fac Was Fac Upp Upp Zhi Pro Fac Slots Evolved 12 | . . . 4 . . 4 . . . 2 . . . . . . 2 Power 1 | . . . . . . . . . . 1 . . . . . . . Propulsion 5 | . . . 2 . . 2 . . . . . . . . . . 1 Utility 4 | . . . 1 . . 1 . . . 1 . . . . . . 1 Weapon 2 | . . . 1 . . 1 . . . . . . . . . . . Parts Attached 145 | 8 4 9 33 10 6 13 2 1 7 10 2 7 4 3 4 6 16 Power 13 | 2 . 2 4 . 1 . . . 1 . . . . 2 . . 1 Engine 11 | 2 . 2 4 . 1 . . . 1 . . . . . . . 1 Core 2 | . . . . . . . . . . . . . . 2 . . . Reactor . | . . . . . . . . . . . . . . . . . . Propulsion 35 | 2 . 2 9 2 2 5 1 . 2 5 . . . . 1 1 3 Treads 21 | 2 . 2 9 2 2 3 . . . . . . . . . . 1 Leg 2 | . . . . . . . . . 2 . . . . . . . . Wheel 10 | . . . . . . 2 1 . . 5 . . . . 1 1 . Hover 2 | . . . . . . . . . . . . . . . . . 2 Flight . | . . . . . . . . . . . . . . . . . . Utility 51 | 2 2 1 6 4 1 4 . 1 2 3 1 5 4 . 3 3 9 Device 20 | 1 . 1 1 1 1 . . . . 3 1 3 2 . 1 1 4 Storage 6 | 1 1 . 3 . . . . . . . . . . . . . 1 Processor 7 | . . . . . . 2 . . . . . 1 1 . . 1 2 Hackware 3 | . . . . . . 1 . 1 . . . . . . . . 1 Protection 15 | . 1 . 2 3 . 1 . . 2 . . 1 1 . 2 1 1 Artifact . | . . . . . . . . . . . . . . . . . . Weapon 46 | 2 2 4 14 4 2 4 1 . 2 2 1 2 . 1 . 2 3 Energy Gun 15 | 1 1 1 10 . . . . . . . . . . . . . 2 Energy Cannon 3 | . . 2 . . . 1 . . . . . . . . . . . Ballistic Gun 8 | 1 . 1 3 2 1 . . . . . . . . . . . . Ballistic Cannon 1 | . . . . 1 . . . . . . . . . . . . . Launcher 11 | . . . 1 1 . 3 . . 2 . 1 1 . . . 1 1 Special Weapon 2 | . 1 . . . . . . . . . . 1 . . . . . Impact Weapon 1 | . . . . . 1 . . . . . . . . . . . . Slashing Weapon 2 | . . . . . . . 1 . . . . . . . . 1 . Piercing Weapon 3 | . . . . . . . . . . 2 . . . 1 . . . Special Melee Weapon . | . . . . . . . . . . . . . . . . . . Unidentified Prototypes 20 | . . . 5 4 1 3 . . . 1 . . 2 . 3 1 . Parts Lost 52 | . 1 3 1 . . 4 2 . 7 2 2 1 . 4 . 1 24 Power 11 | . 1 . . . . 1 1 . 1 1 . . . 2 . . 4 Propulsion 12 | . . 2 . . . 3 1 . 1 . . . . . . . 5 Utility 12 | . . 1 . . . . . . 1 . 1 1 . 1 . . 7 Weapon 17 | . . . 1 . . . . . 4 1 1 . . 1 . 1 8 Highest Loss Streak 15 | . 1 1 1 . . 2 2 . 3 1 2 1 . 2 . 1 15 To Critical Strikes . | . . . . . . . . . . . . . . . . . . Average Backups 20 | . 5 12 14 23 23 22 23 23 20 23 23 22 24 23 23 21 19 Power . | . . . . . . . . . . . . . . . . . . Propulsion 2 | . 1 3 2 6 6 2 . . . 1 1 . . . . . . Utility 11 | . . 2 5 7 10 14 16 15 14 14 16 15 16 15 15 15 13 Weapon 5 | . 3 5 5 9 5 4 6 7 5 6 5 5 5 6 6 4 4 Tool/Special . | . . . . . . . . . . . . . . . . . . Unused Backups 40 | . . 6 6 3 3 5 1 . . . . . 2 . . 1 13 Power . | . . . . . . . . . . . . . . . . . . Propulsion 4 | . . 1 1 . . 2 . . . . . . . . . . . Utility 20 | . . 1 2 1 1 1 1 . . . . . 2 . . 1 10 Weapon 14 | . . 4 3 2 2 1 . . . . . . . . . . 2 Tool/Special 2 | . . . . . . 1 . . . . . . . . . . 1 Average Slot Usage (%) 71 | . 97 93 98 99 74 64 60 60 58 61 54 57 53 52 55 61 48 Engine 4 | . 11 8 9 9 9 4 4 1 2 . 3 . . . . . . Core 1 | . . . . . . . 1 4 . . 1 5 5 7 11 11 4 Treads 15 | . 28 27 35 35 28 18 . . 2 2 5 5 . . . . . Wheel 3 | . . . . . . . 9 13 7 8 5 5 5 5 6 6 . Device 8 | . 10 6 8 9 8 6 6 6 6 14 13 15 10 10 6 8 8 Storage 7 | . 14 14 9 9 9 6 6 6 6 5 5 5 5 5 5 5 4 Processor 2 | . . . . . . 5 6 . . . . . 5 5 3 1 5 Protection 3 | . 3 6 8 9 1 . . . 3 2 . 1 . . 2 5 3 Energy Gun 8 | . 13 9 22 26 8 4 1 . 5 4 5 5 1 . . . . Energy Cannon 2 | . . 10 . . . 1 . . 2 4 5 5 4 5 5 5 3 Ballistic Gun 2 | . 14 8 4 . . 1 4 5 2 . . . . . . . 2 Ballistic Cannon 1 | . . . . . . 4 6 5 . 1 . 1 3 5 5 . . Impact Weapon 1 | . . . . . 8 4 3 6 . . . . . . . . . Peak Build Rating 122 | 7 7 13 34 36 45 84 84 83 83 93 95 102 100 94 93 107 122 Average Rating 59 | 5 6 10 28 34 39 65 78 80 69 85 92 97 91 88 88 96 97 On Entrance 61 | . 7 7 13 34 35 45 77 83 80 70 93 95 92 92 87 91 104 Avg Prop Armor Cover (%) 10 | . . . 6 7 . 17 16 . 6 10 17 14 5 . . 2 3 Naked Turns 48 | . . . . . . . . . . . . . . . . . 48 Heaviest Build 136 | 15 30 42 99 100 101 108 111 111 116 122 134 136 121 120 124 124 128 Greatest Support 136 | 40 40 40 84 84 84 136 119 98 98 80 28 125 68 48 60 60 69 Greatest Overweight (x) 12 | 1 . 1 1 1 1 6 6 1 3 12 4 4 2 2 2 12 3 Average Overweight (x) 1 | . . . . 1 1 . 1 1 1 1 4 3 1 1 2 1 1 Largest Inventory Capacity 25 | 8 15 15 25 25 25 25 25 25 25 25 25 25 25 25 25 25 25 Average Capacity 22 | 7 13 15 16 25 25 25 25 25 25 25 25 25 25 25 25 25 23 Most Carried 25 | 2 11 15 18 25 25 25 25 25 24 25 25 25 25 25 25 25 25 Average Carried 20 | . 5 13 14 23 23 23 24 24 21 24 24 23 24 24 24 24 22 Final Capacity 25 | 8 15 15 25 25 25 25 25 25 25 25 25 25 25 25 25 25 5 Final Carried 25 | 1 11 15 18 25 23 25 25 24 22 25 24 25 25 25 24 25 3 Scrap Engine Consumption 279 | . . . . . 23 49 56 11 33 34 6 19 4 1 5 4 34 Constructs Created 13 | . . . . . 3 2 1 . 3 1 . . . . . . 3 Constructs Modified 105 | . . . . . . 20 24 7 4 19 3 8 5 . . 2 13 Class Distribution -------------------- 51% | Construct 22% | Mutant 6% | Scavenger-Tank 5% | Tank 5% | Commander-Tank 3% | Scavenger-Construct Dominant Class ---------------- Mutant | -10/Materials Mutant | -10/Subcaves Scavenger-Tank | -8/Materials Commander-Tank | -8/Storage Mutant | -8/Recycling Construct | -6/Factory Construct | -6/Garrison Construct | -6/Factory Construct | -6/Garrison Construct | -5/Factory Construct | -5/Waste Construct | -5/Factory Construct | -5/Upper Caves Construct | -5/Upper Caves Construct | -5/Zhirov Scavenger-Construct | -4/Proximity Caves Construct | -4/Factory Resources | -11 -10 -10 -8 -8 -8 -6 -6 -6 -6 -5 -5 -5 -5 -5 -5 -4 -4 ----------- Run | Yrd Mat Sub Mat Sto Rec Fac Gar Fac Gar Fac Was Fac Upp Upp Zhi Pro Fac Matter Collected 6997 | 304 175 348 755 120 119 927 507 187 387 461 486 250 232 377 298 147 917 Remotely . | . . . . . . . . . . . . . . . . . . Salvage Created 15976 | 122 397 568 1643 664 287 2492 2121 683 1366 1775 1103 419 . 250 298 148 1640 Parts 664 | 6 17 35 109 28 4 79 75 36 55 77 6 25 . 11 5 11 85 Haulers Intercepted 10 | . . . 4 3 . 3 . . . . . . . . . . . Recyclers Shooed 5 | . . . . 1 . . . . . . . . . . . . 4 Parts Field Recycled . | . . . . . . . . . . . . . . . . . . Retrieved Matter . | . . . . . . . . . . . . . . . . . . Parts Self-Destructed 29 | . . 13 . . . . . . . . . . 3 6 2 5 . Prevented . | . . . . . . . . . . . . . . . . . . Parts Restored . | . . . . . . . . . . . . . . . . . . Kills | -11 -10 -10 -8 -8 -8 -6 -6 -6 -6 -5 -5 -5 -5 -5 -5 -4 -4 ------- Run | Yrd Mat Sub Mat Sto Rec Fac Gar Fac Gar Fac Was Fac Upp Upp Zhi Pro Fac Combat Hostiles Destroyed 246 | . 10 10 30 9 4 34 33 6 24 19 5 12 . 11 . 4 35 Melee 5 | . . . . . . . . . 3 . . . . . . . 2 Guns 64 | . 10 2 26 6 2 2 4 2 5 4 . . . . . . 1 Cannons 78 | . . 6 . . . 21 19 4 3 13 1 2 . 3 . . 6 AOE 85 | . . . 3 . . 8 9 . 13 . 4 10 . 8 . 4 26 Classes Destroyed 24 | 2 2 2 8 1 . 3 1 . . . 1 . . 1 . 1 2 Worker 16 | . . . 2 . . 2 . 3 . 1 . 3 . . . . 5 Builder 11 | . . . 2 1 . . . . . 3 . . . . . . 5 Tunneler 3 | 2 . . . . . 1 . . . . . . . . . . . Hauler 10 | . . . 4 3 . 3 . . . . . . . . . . . Recycler 16 | 1 1 . 2 1 . 4 . 2 . 3 . . . . . . 2 Minesweeper 1 | . . . . . . . . . . . . . . . . 1 . Mechanic 4 | . . . 2 . . . . . . . . . . . . . 2 Operator 5 | . . . 2 1 . . . 1 . 1 . . . . . . . Watcher 10 | . . . 4 . . 1 . 1 . . . . . . . . 4 Swarmer 62 | . 3 . 11 1 . 7 12 . 3 . . 9 . 2 . 4 10 Cutter 3 | . . . 3 . . . . . . . . . . . . . . Grunt 75 | . 7 2 10 3 . 14 4 . 14 5 . . . 6 . . 10 Brawler 5 | . . . . . . . 3 . 1 1 . . . . . . . Duelist 6 | . . . 1 . . . 2 . 2 1 . . . . . . . Sentry 35 | . . 1 5 4 1 5 6 3 2 3 . 2 . 1 . . 2 Demolisher 1 | . . . . 1 . . . . . . . . . . . . . Specialist 2 | . . . . . . . . . . . . . . . . . 2 Hunter 19 | . . . . . . 2 5 . . 4 . 1 . 2 . . 5 Programmer 19 | . . . . . . 5 1 3 2 4 . . . . . . 4 Heavy 2 | . . . . . . . . . . . . . . . . . 2 Behemoth 2 | . . . . . . 1 . . . 1 . . . . . . . Compactor 5 | . . . . . . . . . . . 5 . . . . . . Subdweller 10 | . . 7 . . 3 . . . . . . . . . . . . Decomposer 2 | . . . . . . . . . . . . . . . . 2 . Samaritan 2 | . . . . . . . . . . . . . . 1 . 1 . Best Kill Streak 14 | 2 4 2 7 4 2 7 7 5 5 8 2 7 . 5 . 4 14 Combat Bots Only 7 | . 3 2 6 2 2 6 7 1 5 7 2 6 . 5 . 4 7 Max Kills in Single Turn 5 | 1 1 1 2 2 1 3 3 2 4 2 1 5 . 3 . 3 4 Gunslinging 1 | . . . 1 . . . . . . . . . . . . . . Exploded 5 | . . . 2 . . 3 3 . 4 . 1 5 . 2 . 3 4 Melee 1 | . . . . . . . . . 1 . . . . . . . 1 Uniques/NPCs Destroyed . | . . . . . . . . . . . . . . . . . . Combat | -11 -10 -10 -8 -8 -8 -6 -6 -6 -6 -5 -5 -5 -5 -5 -5 -4 -4 -------- Run | Yrd Mat Sub Mat Sto Rec Fac Gar Fac Gar Fac Was Fac Upp Upp Zhi Pro Fac Hostile Shots Fired 1519 | . 54 38 146 33 10 242 128 75 156 115 3 28 . 124 . 8 359 Missed 466 | . 17 12 36 7 4 85 50 32 53 44 . 10 . 25 . 2 89 Hits 1053 | . 37 26 110 26 6 157 78 43 103 71 3 18 . 99 . 6 270 Melee 9 | . . . 3 . . . . . 1 2 3 . . . . . . Projectile 1044 | . 37 26 107 26 6 157 78 43 102 69 . 18 . 99 . 6 270 AOE 5 | . . . 2 2 . . . . . . . . . . . . 1 Critical Strikes 35 | . . . 1 1 1 4 3 1 1 2 1 . . 3 . . 17 Part Disruptions 1 | . . . . . . . . . . 1 . . . . . . . Damage Taken 19102 | . 416 519 1488 468 137 2332 1092 350 1653 1287 441 380 54 1948 . 106 6431 Core 2183 | . 63 134 110 . . 149 79 39 109 95 31 35 . 175 . 12 1152 Absorbed by Shields 168 | . . . . . . . . . . . . . . . . . 168 Regen/Repaired (Parts) 4978 | . . . . 271 61 1039 656 110 346 520 380 351 45 . 100 708 391 Core Remaining (%) 63 | 100 . 21 . . 80 . . . 55 . . . . . . 59 . Volleys Fired 775 | 5 44 62 94 33 14 85 72 26 68 63 16 12 . 50 . 5 126 Largest 3 | 2 2 2 3 3 3 3 2 2 2 3 2 3 . 2 . 1 2 Hottest 301 | 70 100 140 183 183 183 120 172 228 228 231 149 184 . 301 . 204 260 Shots Fired 1351 | 10 86 111 275 99 24 145 101 43 87 118 19 20 1 61 . 5 146 Gun 830 | 10 84 54 272 99 24 61 44 26 51 52 3 5 . . . . 45 Cannon 374 | . . 44 . . . 68 49 17 17 64 4 12 . 33 . 1 65 Launcher 132 | . . . 3 . . 16 8 . 19 2 12 3 1 28 . 4 36 Special 15 | . 2 13 . . . . . . . . . . . . . . . Kinetic 534 | 5 42 23 133 . . 69 66 30 43 46 . 5 . 11 . . 61 Thermal 630 | 5 44 88 139 99 24 60 27 13 25 42 4 12 . 22 . 1 25 Explosive 109 | . . . . . . 10 8 . 9 2 12 3 1 28 . 4 32 Electromagnetic 78 | . . . 3 . . 6 . . 10 28 3 . . . . . 28 Robot Hit Streak 37 | 5 16 18 13 16 18 37 18 17 16 17 5 8 . 6 . 6 11 Robot Miss Streak 8 | 2 3 2 5 2 1 3 5 4 6 5 4 1 . 8 . . 7 Penetration Max 1 | . . . . . . . 1 . . 1 . . . . . . . Secondary Targets 12 | . 1 . 11 . . . . . . . . . . . . . . Max Gunslinging Chain 1 | . 1 . 1 . . . . . . . . . . . . . . Shots Hit Robots 940 | 5 61 58 161 67 21 99 106 34 86 88 18 14 . 27 6 6 83 Core Hits 811 | 4 21 19 77 20 4 140 114 36 90 43 19 20 . 44 4 6 150 Critical Kills 4 | . . 2 . . . . . . . 1 . . . . . . 1 Critical Parts Destroyed 5 | . . . . . . . . . . . . . . 1 . 1 3 Critical Strikes 37 | . 2 2 5 12 . . . . 3 5 . . . 1 1 1 5 Burn 20 | . 2 . 5 12 . . . . . 1 . . . . . . . Meltdown 3 | . . 2 . . . . . . . 1 . . . . . . . Destroy 6 | . . . . . . . . . . . . . . 1 . 1 4 Sever 4 | . . . . . . . . . 3 . . . . . . . 1 Impale 4 | . . . . . . . . . . 3 . . . . 1 . . Melee Attacks 152 | . . . . . 2 8 50 . 37 6 . 10 . 6 6 4 23 Impact 22 | . . . . . 2 8 11 . 1 . . . . . . . . Slashing 94 | . . . . . . . 39 . 36 . . . . . . 4 15 Piercing 36 | . . . . . . . . . . 6 . 10 . 6 6 . 8 Sneak Attacks 14 | . . . . . . . . . . 5 . 2 . . . 4 3 Combat Hostiles . | . . . . . . . . . . . . . . . . . . Follow-up Attacks . | . . . . . . . . . . . . . . . . . . Damage Inflicted 42736 | 61 798 1351 3351 1304 511 5081 5664 1358 4438 3725 3093 1168 . 2552 342 673 7266 Guns 9921 | 61 794 498 3105 1227 367 695 631 383 882 728 1 69 . . . . 480 Cannons 13442 | . . 853 . . . 3148 2408 937 567 2639 198 302 . 1018 . 150 1222 Explosions 14042 | . . . 223 . . 1238 706 38 1690 33 2894 649 . 1481 . 236 4854 Melee 5227 | . . . . . 144 . 1919 . 1299 325 . 148 . 53 342 287 710 Ramming 104 | . 4 . 23 77 . . . . . . . . . . . . . Kinetic 11481 | 12 427 185 1460 . . 2497 2654 861 761 1530 . 69 . 73 . . 952 Thermal 12384 | 49 367 1166 1684 1227 367 1346 385 497 1103 1526 198 302 . 945 . 150 1072 Explosive 11928 | . . . . . . 982 706 . 901 . 2894 649 . 1481 . 236 4079 Electromagnetic 1612 | . . . 184 . . 256 . . 374 344 1 . . . . . 453 Impact 182 | . . . . . 144 . 38 . . . . . . . . . . Slashing 3907 | . . . . . . . 1881 . 1299 . . . . . . 287 440 Piercing 1138 | . . . . . . . . . . 325 . 148 . 53 342 . 270 Highest Corruption 17 | . . . . . . 4 5 5 9 2 17 17 10 10 10 10 15 Average Corruption 6 | . . . . . . 2 4 5 7 1 10 11 10 10 10 10 8 Corruption Purged 7 | . . . . . . . . . . . . 7 . . . . . Corruption Blocked . | . . . . . . . . . . . . . . . . . . Effects 293 | . . . . . . 39 33 16 40 8 8 22 33 36 13 11 34 Message Errors 75 | . . . . . . 10 8 3 13 2 1 4 10 7 5 3 9 Matter Fused 66 | . . . . . . 12 11 3 8 2 3 4 8 5 1 2 7 Heat Flow Errors 34 | . . . . . . 3 3 1 2 1 1 3 6 8 2 1 3 Energy Discharges 42 | . . . . . . 5 6 1 7 1 . 2 3 7 1 1 8 Parts Rejected 2 | . . . . . . . . . . . . . . 1 . . 1 Parts Fused 8 | . . . . . . 1 3 . 1 . . 1 . 1 1 . . Data Loss (minor) 36 | . . . . . . 6 . 4 8 2 . 5 3 2 1 2 3 Data Loss (major) 15 | . . . . . . . 2 2 . . 2 2 2 1 1 2 1 Misfires 3 | . . . . . . . . . . . . . 1 2 . . . Alerts 9 | . . . . . . 2 . 2 . . . 1 . 1 1 . 2 Weapon Failures 3 | . . . . . . . . . 1 . 1 . . 1 . . . Overload Shots 13 | . . . . . . . . . . . . . . 6 . 1 6 Overflow Damage 1670 | . . 6 34 . 114 45 51 9 112 304 9 9 . 146 90 201 540 Projectiles 600 | . . 6 . . . . . 9 . 143 . . . 85 . 110 247 Explosions 319 | . . . 34 . . 45 16 . 2 . 9 9 . 61 . . 143 Melee 751 | . . . . . 114 . 35 . 110 161 . . . . 90 91 150 Knockbacks 61 | . . . . 1 . 23 20 4 . 6 . . . 3 . . 4 Impact 2 | . . . . 1 . . 1 . . . . . . . . . . Kinetic 56 | . . . . . . 23 17 4 . 5 . . . 3 . . 4 Secondary 3 | . . . . . . . 2 . . 1 . . . . . . . Self-Inflicted Damage 947 | . . . . . . 179 . . 104 38 324 29 54 94 . 23 102 Shots 41 | . . . . . . 7 . . 2 2 18 1 1 3 . 1 6 Rammed 10 | . 1 . 2 7 . . . . . . . . . . . . . Targets Rammed 11 | . 1 . 3 7 . . . . . . . . . . . . . Kicked . | . . . . . . . . . . . . . . . . . . Crushed 1 | . . . 1 . . . . . . . . . . . . . . Highest Temperature 480 | 36 126 72 399 368 123 240 408 394 346 420 235 200 266 480 174 160 315 Average Temperature 106 | 16 39 20 111 111 44 47 118 110 155 119 69 67 98 167 89 71 104 Received Heat Transfer 3184 | . 162 69 531 180 42 414 99 54 525 177 . 36 . 303 . . 592 Effects 16 | . . . 6 1 . . 2 1 1 . . . . 4 . . 1 Shutdowns 2 | . . . . . . . . . 1 . . . . 1 . . . Energy Bleed 3 | . . . 1 1 . . . 1 . . . . . . . . . Interference 8 | . . . 4 . . . 2 . . . . . . 1 . . 1 Matter Decay 1 | . . . . . . . . . . . . . . 1 . . . Short Circuit 1 | . . . 1 . . . . . . . . . . . . . . Damage (major) 1 | . . . . . . . . . . . . . . 1 . . . Siege Activations . | . . . . . . . . . . . . . . . . . . Martial Activations . | . . . . . . . . . . . . . . . . . . Shielding Activations . | . . . . . . . . . . . . . . . . . . Robots Disrupted . | . . . . . . . . . . . . . . . . . . Combat Hostiles . | . . . . . . . . . . . . . . . . . . Robots Corrupted 3 | . . . . . 1 1 . . . 1 . . . . . . . Combat Hostiles 2 | . . . . . . 1 . . . 1 . . . . . . . Parts Fried 9 | . . . 1 . 1 4 . . . 1 . . . . . . 2 Impact Corruptions 4 | . . . . . 4 . . . . . . . . . . . . Robots Melted 12 | . . 2 1 3 2 2 1 . . 1 . . . . . . . Combat Hostiles 12 | . . 2 1 3 2 2 1 . . 1 . . . . . . . Parts Melted 57 | . 2 5 7 13 8 12 4 . . 4 . 2 . . . . . Heat Transferred 21386 | 148 1184 1620 3752 3441 740 4066 1123 225 859 1846 250 375 . 660 . 80 1017 Parts Sabotaged . | . . . . . . . . . . . . . . . . . . Parts Stolen . | . . . . . . . . . . . . . . . . . . Parts Stripped . | . . . . . . . . . . . . . . . . . . Power Chain Reactions 10 | . . . 1 . . . . 1 7 1 . . . . . . . Alert | -11 -10 -10 -8 -8 -8 -6 -6 -6 -6 -5 -5 -5 -5 -5 -5 -4 -4 ------- Run | Yrd Mat Sub Mat Sto Rec Fac Gar Fac Gar Fac Was Fac Upp Upp Zhi Pro Fac Maximum Alert Level 5 | . . . 2 1 . 1 5 3 5 3 2 1 . . . . 3 Low Security (%) 49 | 100 100 . 77 68 100 68 1 . . . . 39 . . . . 25 Level 1 16 | . . . 21 31 . 31 3 . . . 38 60 . . . . 31 Level 2 9 | . . . 1 . . . 9 . 4 50 61 . . . . . 31 Level 3 14 | . . . . . . . 25 100 32 50 . . . . . . 11 Level 4 7 | . . . . . . . 31 . 54 . . . . . . . . Level 5 3 | . . . . . . . 28 . 8 . . . . . . . . High Security . | . . . . . . . . . . . . . . . . . . Max Security . | . . . . . . . . . . . . . . . . . . Peak Influence 1947 | 10 92 . 404 352 156 269 1947 1042 1627 1025 440 353 . . . . 855 Initial 1022 | . . . 20 161 131 . 157 1022 664 854 358 277 . . . . . Average 408 | 1 23 . 119 190 12 126 1245 945 1176 735 400 213 . . . . 360 Influence Increases 9619 | 15 340 70 875 842 47 1076 1970 221 1033 723 158 372 . 240 10 95 1532 Destroy 0b10 Robot/C 5280 | . 200 60 600 420 20 680 1080 120 480 380 . 240 . 220 . 80 700 Destroy 0b10 Robot/NC 460 | 15 5 . 90 30 5 55 40 35 25 40 . 15 . . 10 5 90 Destroy Leader 980 | . 50 10 116 136 . 198 40 62 40 100 . 50 . 20 . 10 148 Allied During Kill 402 | . . . . 174 6 . 222 . . . . . . . . . . Successful Hack 212 | . 52 . 15 3 15 40 28 . 14 17 . . . . . . 28 Disable Machine 405 | . . . 15 45 . 15 15 . 30 120 . 15 . . . . 150 Anti-Garrison Action 600 | . . . . . . . 350 . 250 . . . . . . . . Destroy Structure 995 | . 3 . 9 4 1 58 165 4 149 66 158 52 . . . . 326 Partial Spotted 15 | . . . . . . . . . . . . . . . . . 15 Lose Combat Pursuer 270 | . 30 . 30 30 . 30 30 . 45 . . . . . . . 75 Influence Decreases 8764 | 15 304 67 531 887 385 851 248 1219 355 1327 785 423 345 234 16 95 677 Entered New Map 3436 | . . 18 19 222 207 . 68 925 285 773 665 119 129 . 6 . . Time Decay 4298 | 15 294 49 502 565 178 511 . 294 . 534 100 294 216 204 10 95 437 Lost Part 470 | . 10 . 10 . . 40 20 . 70 20 20 10 . 30 . . 240 Lost Ally 260 | . . . . 100 . . 160 . . . . . . . . . . Purge Threat 300 | . . . . . . 300 . . . . . . . . . . . Squads Dispatched 42 | . 4 . 2 5 . 10 . 3 . 6 . 1 . . . . 11 Investigation 4 | . 2 . . . . . . 1 . 1 . . . . . . . Extermination 11 | . . . . . . 4 . 1 . 2 . 1 . . . . 3 Reinforcement 18 | . 2 . 2 3 . 6 . . . 1 . . . . . . 4 Assault 1 | . . . . . . . . . . . . . . . . . 1 Garrison 8 | . . . . 2 . . . 1 . 2 . . . . . . 3 Intercept . | . . . . . . . . . . . . . . . . . . Searches Triggered . | . . . . . . . . . . . . . . . . . . Construction Impeded 2 | . . . . 1 . 1 . . . . . . . . . . . Haulers Reinforced 2 | . . . . . . 1 . . . 1 . . . . . . . Active Scanning Responses . | . . . . . . . . . . . . . . . . . . Cargo Convoy Interrupts 1 | . . . . . . 1 . . . . . . . . . . . Stealth | -11 -10 -10 -8 -8 -8 -6 -6 -6 -6 -5 -5 -5 -5 -5 -5 -4 -4 --------- Run | Yrd Mat Sub Mat Sto Rec Fac Gar Fac Gar Fac Was Fac Upp Upp Zhi Pro Fac Distress Signals 7 | . . . 1 2 . . 1 1 . 1 . . . . . . 1 Communications Jammed . | . . . . . . . . . . . . . . . . . . Distress Signals . | . . . . . . . . . . . . . . . . . . Times Spotted 355 | . 19 10 46 24 7 42 52 10 28 21 6 12 . 12 . 4 62 Peak Tracking Total 17 | . 3 2 7 4 2 6 17 2 5 3 2 6 . 5 . 4 6 Tactical Retreats 17 | . 2 . 2 2 . 2 2 . 3 . . . . . . . 4 Traps | -11 -10 -10 -8 -8 -8 -6 -6 -6 -6 -5 -5 -5 -5 -5 -5 -4 -4 ------- Run | Yrd Mat Sub Mat Sto Rec Fac Gar Fac Gar Fac Was Fac Upp Upp Zhi Pro Fac Traps Triggered 27 | . 1 . . . . 3 8 1 7 2 . 1 . . . . 4 Indirectly 2 | . . . . . . . . . 2 . . . . . . . . Trap Hack Attempts . | . . . . . . . . . . . . . . . . . . Triggered . | . . . . . . . . . . . . . . . . . . Disarmed . | . . . . . . . . . . . . . . . . . . Reprogrammed . | . . . . . . . . . . . . . . . . . . Reused . | . . . . . . . . . . . . . . . . . . Traps Extracted . | . . . . . . . . . . . . . . . . . . Installed . | . . . . . . . . . . . . . . . . . . Triggered . | . . . . . . . . . . . . . . . . . . Most Traps Carried 3 | . . 1 1 . . . . . . . . . . . . 3 3 Machines | -11 -10 -10 -8 -8 -8 -6 -6 -6 -6 -5 -5 -5 -5 -5 -5 -4 -4 ---------- Run | Yrd Mat Sub Mat Sto Rec Fac Gar Fac Gar Fac Was Fac Upp Upp Zhi Pro Fac Machines Disabled 37 | . . . 1 3 . 1 7 . 6 8 . 1 . . . . 10 Max in Single Turn 4 | . . . 1 1 . 1 2 . 2 2 . 1 . . . . 4 Garrison Access 1 | . . . . 1 . . . . . . . . . . . . . Garrison Relay 7 | . . . . . . . 5 . 2 . . . . . . . . Phase Generator 2 | . . . . . . . 1 . 1 . . . . . . . . Machines Repaired . | . . . . . . . . . . . . . . . . . . Machines Dismantled . | . . . . . . . . . . . . . . . . . . Machines Sabotaged . | . . . . . . . . . . . . . . . . . . Overloaded Fab Kills . | . . . . . . . . . . . . . . . . . . Hacking | -11 -10 -10 -8 -8 -8 -6 -6 -6 -6 -5 -5 -5 -5 -5 -5 -4 -4 --------- Run | Yrd Mat Sub Mat Sto Rec Fac Gar Fac Gar Fac Was Fac Upp Upp Zhi Pro Fac Machines Accessed 82 | . 8 1 7 11 12 8 3 6 1 7 . 4 1 . 8 . 5 Terminals 43 | . 6 . 6 8 5 4 3 1 1 5 . . . . . . 4 Fabricators 1 | . . . . . . . . 1 . . . . . . . . . Repair Stations 3 | . 1 . . 2 . . . . . . . . . . . . . Recycling Units 16 | . 1 . . . 6 2 . 1 . 2 . 3 . . . . 1 Scanalyzers 2 | . . . 1 . . . . 1 . . . . . . . . . Garrison Access 6 | . . . . 1 . 2 . 2 . . . 1 . . . . . Total Hacks 236 | . 36 4 18 35 34 15 4 8 2 16 . 4 1 . 47 . 12 Successful 133 | . 19 4 12 11 16 5 2 3 1 7 . 2 1 . 47 . 3 Failed 101 | . 16 . 5 24 18 10 2 5 1 9 . 2 . . . . 9 Catastrophic 16 | . 1 . . 2 2 3 . 2 . 3 . 1 . . . . 2 Database Lockouts 2 | . 1 . 1 . . . . . . . . . . . . . . Manual 103 | . 30 . 15 20 13 4 . . . 12 . . . . . . 9 Terminals 134 | . 33 . 17 28 17 9 4 1 2 14 . . . . . . 9 Fabricators 1 | . . . . . . . . 1 . . . . . . . . . Repair Stations 5 | . 1 . . 4 . . . . . . . . . . . . . Recycling Units 28 | . 2 . . . 14 2 . 2 . 2 . 3 . . . . 3 Scanalyzers 2 | . . . 1 . . . . 1 . . . . . . . . . Garrison Access 11 | . . . . 3 . 4 . 3 . . . 1 . . . . . Terminal Hacks 78 | . 6 4 2 3 8 3 2 . 1 1 . . 1 . 47 . . Record 40 | . . 4 . . 1 . . . . . . . . . 35 . . Part Schematic 4 | . . . . . . . . . . . . . . . 4 . . Robot Analysis 9 | . 3 . . . 2 . . . . . . . . . 4 . . Prototype ID Bank 8 | . 1 . . 1 2 . . . . . . . . . 4 . . Open Door 2 | . . . . 1 . . . . . . . . 1 . . . . Branch Access Points 1 | . . . 1 . . . . . . . . . . . . . . Emergency Access Points 2 | . . . . . . . 1 . 1 . . . . . . . . Terminal Index 3 | . 1 . . . 1 1 . . . . . . . . . . . Alert Level 1 | . . . . . . . . . . 1 . . . . . . . Unreport Threat 2 | . . . . . . 2 . . . . . . . . . . . Locate Traps 1 | . . . 1 . . . . . . . . . . . . . . Hauler Manifests 1 | . 1 . . . . . . . . . . . . . . . . Zone Layout 1 | . . . . 1 . . . . . . . . . . . . . Patrol Navigation 1 | . . . . . . . 1 . . . . . . . . . . Release Object 2 | . . . . . 2 . . . . . . . . . . . . Fabricator Hacks 1 | . . . . . . . . 1 . . . . . . . . . Network Status 1 | . . . . . . . . 1 . . . . . . . . . Repair Station Hacks 5 | . 1 . . 4 . . . . . . . . . . . . . Scan Component 2 | . . . . 2 . . . . . . . . . . . . . Repair 2 | . . . . 2 . . . . . . . . . . . . . Refit 1 | . 1 . . . . . . . . . . . . . . . . Recycling Unit Hacks 11 | . 1 . . . 6 . . . . 1 . 2 . . . . 1 Retrieve Components 11 | . 1 . . . 6 . . . . 1 . 2 . . . . 1 Scanalyzer 2 | . . . 1 . . . . 1 . . . . . . . . . Retrieve Study 2 | . . . 1 . . . . 1 . . . . . . . . . Garrison Access Hacks 3 | . . . . 1 . 1 . 1 . . . . . . . . . Unlock Access 2 | . . . . . . 1 . 1 . . . . . . . . . Seal Access 1 | . . . . 1 . . . . . . . . . . . . . Unauthorized Hacks 33 | . 11 . 9 3 2 1 . . . 5 . . . . . . 2 Terminals 33 | . 11 . 9 3 2 1 . . . 5 . . . . . . 2 Track 1 | . 1 . . . . . . . . . . . . . . . . Botnet 14 | . 3 . 4 2 1 . . . . 3 . . . . . . 1 Operators 1 | . 1 . . . . . . . . . . . . . . . . Skim 17 | . 6 . 5 1 1 1 . . . 2 . . . . . . 1 Fabricators . | . . . . . . . . . . . . . . . . . . Repair Stations . | . . . . . . . . . . . . . . . . . . Recycling Units . | . . . . . . . . . . . . . . . . . . Scanalyzers . | . . . . . . . . . . . . . . . . . . Garrison Access . | . . . . . . . . . . . . . . . . . . Data Cores Recovered 1 | . . . 1 . . . . . . . . . . . . . . Used . | . . . . . . . . . . . . . . . . . . Hacking Detections 63 | . 7 . 6 10 9 8 2 5 1 7 . 4 . . . . 4 Full Trace Events 3 | . 1 . . . . . . 1 . 1 . . . . . . . Feedback Events . | . . . . . . . . . . . . . . . . . . Feedback Blocked . | . . . . . . . . . . . . . . . . . . Robot Schematics Acquired . | . . . . . . . . . . . . . . . . . . Robots Built . | . . . . . . . . . . . . . . . . . . Authchips . | . . . . . . . . . . . . . . . . . . Time . | . . . . . . . . . . . . . . . . . . Total Robot Build Rating . | . . . . . . . . . . . . . . . . . . Part Schematics Acquired 4 | . . . . . . . . . . . . . . . 4 . . Parts Built . | . . . . . . . . . . . . . . . . . . Authchips . | . . . . . . . . . . . . . . . . . . Time . | . . . . . . . . . . . . . . . . . . Total Part Build Rating . | . . . . . . . . . . . . . . . . . . Part Studies Acquired 2 | . . . 1 . . . . 1 . . . . . . . . . Parts Repaired 2 | . . . . 2 . . . . . . . . . . . . . Time 91 | . . . . 91 . . . . . . . . . . . . . Parts Recycled . | . . . . . . . . . . . . . . . . . . Recycled Matter . | . . . . . . . . . . . . . . . . . . Retrieved Matter . | . . . . . . . . . . . . . . . . . . Retrieved Components 30 | . 6 . . . 11 . . . . 2 . 11 . . . . . Parts Scanalyzed . | . . . . . . . . . . . . . . . . . . Part Schematics Acquired . | . . . . . . . . . . . . . . . . . . Parts Damaged . | . . . . . . . . . . . . . . . . . . Bothacking | -11 -10 -10 -8 -8 -8 -6 -6 -6 -6 -5 -5 -5 -5 -5 -5 -4 -4 ------------ Run | Yrd Mat Sub Mat Sto Rec Fac Gar Fac Gar Fac Was Fac Upp Upp Zhi Pro Fac Used RIF Installer . | . . . . . . . . . . . . . . . . . . Robots Hacked . | . . . . . . . . . . . . . . . . . . Non-combat . | . . . . . . . . . . . . . . . . . . Combat . | . . . . . . . . . . . . . . . . . . Robot Hacks Applied . | . . . . . . . . . . . . . . . . . . Relay Couplers Released 31 | . . . . . . . 23 . 8 . . . . . . . . Machine Destruction 27 | . . . . . . . 19 . 8 . . . . . . . . Programmers 4 | . . . . . . . 4 . . . . . . . . . . Fabnet Peak Effective % . | . . . . . . . . . . . . . . . . . . Robots Rewired 7 | . . . . . . . 7 . . . . . . . . . . Allies Hacked . | . . . . . . . . . . . . . . . . . . Hacks Repelled . | . . . . . . . . . . . . . . . . . . Allies | -11 -10 -10 -8 -8 -8 -6 -6 -6 -6 -5 -5 -5 -5 -5 -5 -4 -4 -------- Run | Yrd Mat Sub Mat Sto Rec Fac Gar Fac Gar Fac Was Fac Upp Upp Zhi Pro Fac Total Allies 19 | . . . . 10 . . 9 . . . . . . . . . . Largest Group 10 | . . . . 10 4 1 6 . . . . . . . . . . Highest-Rated Group 295 | . . . . 173 61 16 295 . . . . . . . . . . Highest-Rated Ally 95 | . . . . 29 16 16 95 . . . . . . . . . . Initial Warlord ECA Mod 16 | . . . . . . . . 10 10 16 16 16 16 16 16 15 15 Total Orders . | . . . . . . . . . . . . . . . . . . Ally Attacks 202 | . . . . 90 28 . 84 . . . . . . . . . . Total Damage 4560 | . . . . 1042 398 . 3120 . . . . . . . . . . Kills 37 | . . . . 13 1 . 23 . . . . . . . . . . Allies Corrupted . | . . . . . . . . . . . . . . . . . . Allies Melted 1 | . . . . . . . 1 . . . . . . . . . . Intel | -11 -10 -10 -8 -8 -8 -6 -6 -6 -6 -5 -5 -5 -5 -5 -5 -4 -4 ------- Run | Yrd Mat Sub Mat Sto Rec Fac Gar Fac Gar Fac Was Fac Upp Upp Zhi Pro Fac Active Infowar (turns) 4075 | 31 812 . . . . . . . . 43 . 267 883 895 . 2 1142 Sensors 1805 | . . . . . . . . . . . . . 882 895 . . 28 Seismic 1153 | 31 812 . . . . . . . . 43 . 267 . . . . . Machine Analysis 1114 | . . . . . . . . . . . . . . . . . 1114 Spoofing 921 | . . . . . . . . . . . . . 1 . . . 920 Jamming 2 | . . . . . . . . . . . . . . . . 2 . Robot Analysis Total 9 | . 3 . . . 2 . . . . . . . . . 4 . . Derelict Logs Recovered 4 | . . 2 . . . . . . . . . . 2 . . . . Drone Launches . | . . . . . . . . . . . . . . . . . . Drone Recoveries . | . . . . . . . . . . . . . . . . . . Exploration | -11 -10 -10 -8 -8 -8 -6 -6 -6 -6 -5 -5 -5 -5 -5 -5 -4 -4 ------------- Run | Yrd Mat Sub Mat Sto Rec Fac Gar Fac Gar Fac Was Fac Upp Upp Zhi Pro Fac Turns Passed 22760 | 109 1113 2008 2190 1697 2086 2781 1671 654 1373 1518 204 652 903 1018 388 679 1716 Spaces Moved 10552 | 53 572 1077 1041 592 837 1409 678 331 505 678 100 340 445 425 190 386 893 Core 108 | 7 . . . . . . . . . . . . . . . . 101 Treads 5805 | 46 572 1077 1041 592 837 1081 . . 186 219 . 97 32 . . . 25 Legs 394 | . . . . . . 295 89 . 10 . . . . . . . . Wheels 3184 | . . . . . . 33 589 331 309 459 100 243 413 425 190 92 . Hover 1061 | . . . . . . . . . . . . . . . . 294 767 Flight . | . . . . . . . . . . . . . . . . . . Fastest Speed 50 | 50 160 160 150 230 235 120 94 166 135 129 150 129 157 164 161 134 50 Average Speed 177 | 147 160 160 161 234 237 164 166 169 206 182 150 164 199 200 191 162 139 Slowest Speed 342 | 160 160 240 232 235 240 237 251 171 274 342 150 230 250 204 204 260 250 Overloaded Moves 20 | . . . . . . . . . . . . . . . . . 20 Propulsion Burnouts . | . . . . . . . . . . . . . . . . . . Robots Hopped . | . . . . . . . . . . . . . . . . . . Potential Cave-ins 2 | . . . . . . . 2 . . . . . . . . . . Cave-ins Triggered . | . . . . . . . . . . . . . . . . . . Teleports 1 | . . . . . . . . . . . . . . . 1 . . Exploration Rate (%) 52 | 4 96 60 76 75 96 34 84 14 66 15 68 12 56 54 62 57 19 Regions Visited 17 Branch Regions 7 Pre-discovered Areas 7 | . . 1 2 . . . . . . . . . 1 . 3 . . Known Exits Taken 7 | . . . 1 1 . 1 . 1 . . . 1 1 1 . . . Unknown Exits Taken 6 | 1 1 1 . . 1 . . . . . . . . . 1 1 . Scrap Searched 14 | . . 8 . . . . . . . . . . 4 1 . 1 . Spaces Dug 20 | . 2 1 . . 1 7 . . . . . 1 . . . . 8 Terrain Destroyed 1002 | . 2 3 10 . 1 64 123 2 109 36 187 31 10 126 . 27 271 Melee 13 | . . . . . 1 7 . . . . . . . . . . 5 Projectile 113 | . 2 3 8 . . 5 5 1 7 21 2 8 . 10 . . 41 AOE 871 | . . . 2 . . 50 116 . 102 15 185 23 10 116 . 27 225 Terrain Rammed . | . . . . . . . . . . . . . . . . . . Walls Destroyed . | . . . . . . . . . . . . . . . . . . Machines Disabled . | . . . . . . . . . . . . . . . . . . Actions | -11 -10 -10 -8 -8 -8 -6 -6 -6 -6 -5 -5 -5 -5 -5 -5 -4 -4 --------- Run | Yrd Mat Sub Mat Sto Rec Fac Gar Fac Gar Fac Was Fac Upp Upp Zhi Pro Fac Total 13038 | 71 677 1227 1352 815 924 1729 1043 387 691 825 121 394 462 517 207 429 1167 Wait 851 | 2 43 47 114 147 49 165 94 21 32 45 . 9 3 22 1 5 52 Move 10534 | 52 571 1076 1040 591 836 1408 675 330 504 678 99 339 444 424 189 385 893 Hop . | . . . . . . . . . . . . . . . . . . Pick Up 122 | 1 9 16 25 11 2 19 4 . 1 6 1 5 3 . 1 6 12 Fast Attach 60 | 7 . 1 4 2 1 7 1 . 3 7 1 3 1 4 5 7 6 Attach 64 | 1 . 4 9 2 3 9 . 1 5 2 1 3 2 2 2 4 14 Detach 26 | 1 1 . 2 1 4 1 . . 3 3 . . 2 2 . 2 4 Swap 116 | 1 7 8 29 12 2 8 7 . 3 7 1 9 3 7 . 1 11 Drop 138 | 1 1 13 32 9 11 19 5 1 3 8 2 3 4 . 3 10 13 Fire 775 | 5 44 62 94 33 14 85 72 26 68 63 16 12 . 50 . 5 126 Melee 152 | . . . . . 2 8 50 . 37 6 . 10 . 6 6 4 23 Ram . | . . . . . . . . . . . . . . . . . . Kick . | . . . . . . . . . . . . . . . . . . Crush 11 | . 1 . 3 7 . . . . . . . . . . . . . Escape Stasis 109 | . . . . . . . 56 8 32 . . . . . . . 13 Rewire 79 | . . . . . . . 79 . . . . . . . . . . Trap . | . . . . . . . . . . . . . . . . . . Miscellaneous 1 | . . . . . . . . . . . . 1 . . . . . Route ------- -11/Scrapyard -10/Materials (discovered 6 exits: [*Mat x3] / [*Min x2] / *Sub) -10/Subcaves (discovered 3 exits: *Mat x2 / Rec) -8/Materials (discovered 3 exits: [*Fac x2] / *Sto) -8/Storage (discovered 2 exits: [*Fac] / *Rec) -8/Recycling -6/Factory (discovered 5 exits: *Fac x2 / Low x2 / Gar) -6/Garrison (discovered 3 exits: *Fac x3) -6/Factory -6/Garrison (discovered 2 exits: *Fac x2) -5/Factory -5/Waste -5/Factory -5/Upper Caves -5/Upper Caves -5/Zhirov -4/Proximity Caves -4/Factory (discovered 2 exits: Upp / [*Ext]) History --------- Turn | Location | Event 17 | -11/Scrapyard | Discovered new exit (range 15) 110 | -11/Scrapyard | Entered Materials 191 | -10/Materials | Discovered new exit (range 16) 200 | -10/Materials | Met 8R-AWN 325 | -10/Materials | Build established: Mutant 381 | -10/Materials | Discovered new exit (range 10) 472 | -10/Materials | Discovered new exit (range 10) 613 | -10/Materials | Discovered new exit (range 10) 833 | -10/Materials | Discovered new exit (range 5) 1049 | -10/Materials | Central database locked down 1180 | -10/Materials | Loaded intel: 2 recycling unit locations 1209 | -10/Materials | Discovered new exit (range 7) 1223 | -10/Materials | Entered Subcaves 1291 | -10/Subcaves | A swath of the cavern ceiling suddenly collapsed 1577 | -10/Subcaves | Shifting Twisted Machinery released Sub. Monowheel 1581 | -10/Subcaves | Shifting Twisted Machinery released Sub. Monowheel 1699 | -10/Subcaves | Learned location of Zion (-7) 1784 | -10/Subcaves | A swath of the cavern ceiling suddenly collapsed 2439 | -10/Subcaves | Disturbed a concealed Subdweller 2444 | -10/Subcaves | Core integrity fell below 50% 2451 | -10/Subcaves | Disturbed a concealed Subdweller 2548 | -10/Subcaves | Disturbed a concealed Subdweller 2819 | -10/Subcaves | Visited Clippyterm 2824 | -10/Subcaves | Identified exit to Recycling 3020 | -10/Subcaves | Shifting Twisted Machinery released Sub. Beam Cannon 3215 | -10/Subcaves | Discovered new exit (range 10) 3228 | -10/Subcaves | Discovered new exit (range 10) 3231 | -10/Subcaves | Entered Materials 3231 | -8/Materials | Evolved 4 slots: Propulsion x2, Utility x1, Weapon x1 3975 | -8/Materials | Discovered new exit (range 10) 4002 | -8/Materials | Build established: Scavenger-Tank 4715 | -8/Materials | Discovered new exit (range 10) 4740 | -8/Materials | Identified exit to Storage 4740 | -8/Materials | Central database locked down 4805 | -8/Materials | Learned location of 2 exits from Factory 4859 | -8/Materials | Learned Storage trap positions 4902 | -8/Materials | Learned 2 Storage zone layouts 4986 | -8/Materials | Build established: Tank 4998 | -8/Materials | Learned location of Storage (-8) 5421 | -8/Materials | Entered Storage 5423 | -8/Storage | Loaded intel: 11 trap records 5517 | -8/Storage | Repaired Broken Arm. Treads 5930 | -8/Storage | Met 01-MTF 6001 | -8/Storage | Build established: Scavenger-Tank 6094 | -8/Storage | Assisted by bots powering up and referring to "LRC-V3" 6104 | -8/Storage | Garrison activated, responded to threat 6155 | -8/Storage | Discovered new exit (range 15) 6418 | -8/Storage | Build established: Commander-Tank 6633 | -8/Storage | Lost 3 allies 6693 | -8/Storage | Repaired Adv. Treads 7102 | -8/Storage | Discovered exit to Recycling (range 8) 7118 | -8/Storage | Entered Recycling 7118 | -8/Recycling | Accompanied by 5 allies (01-MTF) 7294 | -8/Recycling | Entered Scraplab 7363 | -8/Recycling | Found Prototype Device 7363 | -8/Recycling | Identified Scrap Engine 7794 | -8/Recycling | Lost 3 allies 8045 | -8/Recycling | Build established: Mutant 8587 | -8/Recycling | Discovered new exit (range 15) 9204 | -8/Recycling | Entered Factory 9204 | -6/Factory | Accompanied by 1 ally 9204 | -6/Factory | Evolved 4 slots: Propulsion x2, Utility x1, Weapon x1 9205 | -6/Factory | Identified exit to Lower Caves 9206 | -6/Factory | Identified exit to Factory 9394 | -6/Factory | Discovered exit to Factory (range 5) 9506 | -6/Factory | Build established: Scavenger-Mutant 9999 | -6/Factory | Build established: Construct 10104 | -6/Factory | Identified exit to Garrison 10242 | -6/Factory | Spotted B-75 Beast 10249 | -6/Factory | Cargo convoy interrupted 10261 | -6/Factory | Destroyed B-75 Beast 10319 | -6/Factory | Found Prototype Processor 10319 | -6/Factory | Identified Exp. Targeting Computer 10325 | -6/Factory | Found Exp. Targeting Computer 11154 | -6/Factory | Found Prototype Launcher 11154 | -6/Factory | Identified Rocket Array 11212 | -6/Factory | Found Rocket Array 11215 | -6/Factory | Found Rocket Array 11985 | -6/Factory | Entered Garrison 12047 | -6/Garrison | Triggered checkpoint 12053 | -6/Garrison | Garrison Relay disabled 12146 | -6/Garrison | Found embedded Infiltrators 12163 | -6/Garrison | Triggered checkpoint 12175 | -6/Garrison | Triggered checkpoint 12224 | -6/Garrison | Triggered checkpoint 12325 | -6/Garrison | Triggered checkpoint 12483 | -6/Garrison | Triggered checkpoint 12657 | -6/Garrison | Garrison Relay disabled 12776 | -6/Garrison | Phase Generator disabled 12785 | -6/Garrison | Discovered new exit (range 11) 12942 | -6/Garrison | Attempted to access garrison exit controls, blocked by remote lockdown 13107 | -6/Garrison | Lost 6 allies 13113 | -6/Garrison | Destroyed 7 combat bots 13252 | -6/Garrison | Discovered new exit (range 15) 13285 | -6/Garrison | Attempted to access garrison exit controls, blocked by remote lockdown 13319 | -6/Garrison | Triggered checkpoint 13357 | -6/Garrison | Garrison Relay disabled 13509 | -6/Garrison | Garrison Relay disabled 13563 | -6/Garrison | Discovered new exit (range 11) 13609 | -6/Garrison | Garrison Relay disabled 13616 | -6/Garrison | Triggered checkpoint 13656 | -6/Garrison | Entered Factory 14219 | -6/Factory | Garrison activated, responded to threat 14280 | -6/Factory | Identified exit to Garrison 14310 | -6/Factory | Entered Garrison 14367 | -6/Garrison | Garrison Relay disabled 14426 | -6/Garrison | Triggered checkpoint 14582 | -6/Garrison | Triggered checkpoint 14586 | -6/Garrison | Triggered checkpoint 14586 | -6/Garrison | Triggered checkpoint 14817 | -6/Garrison | Triggered checkpoint 14850 | -6/Garrison | Lost 3 parts (1n1u1w) 14911 | -6/Garrison | Discovered exit to Factory (range 10) 14990 | -6/Garrison | Triggered checkpoint 15073 | -6/Garrison | Garrison Relay disabled 15359 | -6/Garrison | Discovered exit to Factory (range 14) 15566 | -6/Garrison | Phase Generator disabled 15683 | -6/Garrison | Entered Factory 15683 | -5/Factory | Evolved 2 slots: Power x1, Utility x1 15967 | -5/Factory | Discovered new exit (range 16) 16723 | -5/Factory | Spotted B-75 Beast 16754 | -5/Factory | Destroyed B-75 Beast 17044 | -5/Factory | Garrison activated, responded to threat 17117 | -5/Factory | Destroyed 7 combat bots 17201 | -5/Factory | Sucked down chute 17201 | -5/Factory | Entered Waste 17216 | -5/Waste | EMP discharged 17228 | -5/Waste | Spotted C-40 Crusher 17242 | -5/Waste | Destroyed C-40 Crusher 17246 | -5/Waste | Spotted C-40 Crusher 17249 | -5/Waste | Destroyed C-40 Crusher 17265 | -5/Waste | Spotted C-40 Crusher 17273 | -5/Waste | Spotted C-40 Crusher 17278 | -5/Waste | Destroyed C-40 Crusher 17292 | -5/Waste | Crushed by Compactor (1 part destroyed) 17295 | -5/Waste | Crushed by Compactor (1 part destroyed) 17300 | -5/Waste | Destroyed C-40 Crusher 17316 | -5/Waste | EMP discharged 17316 | -5/Waste | System corruption reached 10% 17320 | -5/Waste | Spotted C-40 Crusher 17329 | -5/Waste | Destroyed C-40 Crusher 17383 | -5/Waste | Discovered new exit (range 16) 17386 | -5/Waste | Spotted C-40 Crusher 17405 | -5/Waste | Entered Factory 18013 | -5/Factory | Discovered new exit (range 15) 18056 | -5/Factory | Identified exit to Upper Caves 18057 | -5/Factory | Entered Upper Caves 18070 | -5/Upper Caves | Met a Warlord Commander 18071 | -5/Upper Caves | Learned location of Warlord (-4) 18072 | -5/Upper Caves | Warlord Commander delivered Encrypted Comm Array 18075 | -5/Upper Caves | Found Encrypted Comm Array 18224 | -5/Upper Caves | Learned location of 1 exit from Factory 18871 | -5/Upper Caves | Learned Factory emergency access door positions 18936 | -5/Upper Caves | Discovered new exit (range 10) 18952 | -5/Upper Caves | Identified exit to Upper Caves 18960 | -5/Upper Caves | Entered another Upper Caves area 19444 | -5/Upper Caves | Attracted the attention of an 0b10 checkpoint 19960 | -5/Upper Caves | Discovered new exit (range 9) 19976 | -5/Upper Caves | Identified exit to Zhirov 19978 | -5/Upper Caves | Entered Zhirov 19978 | -5/Zhirov | Discovered new exit (range 3) 20042 | -5/Zhirov | Met Zhirov 20080 | -5/Zhirov | Learned location of Quarantine (-2) 20080 | -5/Zhirov | Learned location of Testing (-3) 20080 | -5/Zhirov | Learned location of Command (-1) 20121 | -5/Zhirov | Zhirov requested help retrieving the SGEMP Prototype 20160 | -5/Zhirov | Found Alien Artifact 20160 | -5/Zhirov | Identified Integrated Reactor 20160 | -5/Zhirov | Installed Integrated Reactor, increased core energy generation (+10) 20296 | -5/Zhirov | Found Alien Artifact 20296 | -5/Zhirov | Identified Transdimensional Reconstructor 20296 | -5/Zhirov | Warped through subspace 20366 | -5/Zhirov | Entered Proximity Caves 20557 | -4/Proximity Caves | Build established: Scavenger-Construct 20899 | -4/Proximity Caves | Encountered a Derelict sapper outpost 21024 | -4/Proximity Caves | Discovered new exit (range 14) 21045 | -4/Proximity Caves | Entered Factory 21045 | -4/Factory | Evolved 2 slots: Propulsion x1, Utility x1 21046 | -4/Factory | Identified exit to Upper Caves 21066 | -4/Factory | Build established: Construct 21795 | -4/Factory | First assault squad dispatched 22083 | -4/Factory | Discovered new exit (range 7) 22398 | -4/Factory | System corruption reached 10% 22488 | -4/Factory | Garrison activated, responded to threat 22506 | -4/Factory | Core integrity fell below 50% 22551 | -4/Factory | Lost 15 parts (2p4n4u5w) 22603 | -4/Factory | Destroyed 7 combat bots 22682 | -4/Factory | Core integrity fell below 20% 22685 | -4/Factory | Released all parts (5) 22712 | -4/Factory | Lost 4 parts (1u3w) 22761 | -4/Factory | Destroyed by G-67 Veteran with Plasma Rifle Last Messages --------------- 22685_ Released Core Analyzer. 22685_ Released Hcp. Storage Unit. 22685_ Released Thermoblaster. 22685_ Released Scrap Engine. 22687_ Slug penetrates Nuclear Reactor. 22688_ Y-64 Sentinel heat damages Imp. Treads, Adv. Heat Sink, Adv. Heat Sink. 22688_ The unstable cave ceiling collapses. 22692_ System corrupted: Component data lost. 22693_ Y-64 Sentinel heat short circuits Adv. Heat Sink. 22707_ Triggered Fusion Bomb Trap. 22707_ An explosion rips through the floor. 22732_ Dropped Matter Compressor. 22732_ Acquired Dispersion Rifle. 22735_ P46H|JVCD,VPL |OX6TGQ G H/M8|ROMSI9BW 22743_ ALERT: Potential suspicious activity detected, Programmers report to Factory Zone 5F. 22743_ Acquired Imp. Gyrokinetic Inverter. Map ----- +----------------------------------------------------+ | ?????????????????????????????????????????????????? | | ?????????????????????????????????????????????????? | | ?????????????????????????????????????????????????? | | ?????????????????????????????????????????????????? | | ?????????????????????????????????????????????????? | | ?????????????????????????????????????????????????? | | ?????????????????????????????????????????????????? | | ?????????????????????????????????????????????????? | | ?????????????????????????????????????????????????? | | ?????????????????????????????????????????????????? | | ?????????????????????????????????????????????????? | | ?????????????????????????????????????????????????? | | ?????????????????????????????????????????????????? | | ?????????????????????????????????????????????????? | | ?????????????????????????????????????????????????? | | ?????????????????????????????????????????????????? | | ?????????????????????????????????????????????????? | | ?????????????????????????????????????????????????? | | ?????????????????????????????????????????????????? | | ????????????????????##########+###### ??????????? | | ????????????????????# T ??????????? | | ????????????????????# ?????????? | | ????########????????# ]] ??????????? | | ????# #????????# ]] ????????????? | | ????# #????????# """"??????????????? | | ????# """ #????????# @ """"??????????????? | | ????# """ #????????# """"??????????????? | | ????# """ #????????# """"??????????????? | | ????# !#????????# """"??????????????? | | ????###+####????????# b """"??????????????? | | ###### ############ ???????????? | | / k ???????????? | | ###### ##############g##############???????????? | | ?????## #########????? g? ???????????????????????? | | ??????# ##! """ #????? ??????????????????????? | | ?????## ## """ #???? ?????????????????????? | | ?##### # """ #???? === ????????????????????? | | + + ! #???? === ???????????????????? | | ###### # #??? == #??????????????????? | | ?????## ## #??? """ #??????????????????? | | ####### #####+####?? """? #??????????????????? | | + +?? "??? #??????????????????? | | # #???? ????#??????????????????? | | # #???? ???????????????????????? | | + +???????????????????????????????? | | ##### #######+####???????????????????????????????? | | ????# #??????????????????????????????????????????? | | ????# #??????????????????????????????????????????? | | ????# #??????????????????????????????????????????? | | ????# #??????????????????????????????????????????? | +----------------------------------------------------+ Best States ------------- Heat Dissipation 94 Coolant Potential 65 Energy Generation 43 Energy Capacity 1268 Matter Stores 400 Matter Capacity 450 Sight Range 16 Robot Scan Range 16 Terrain Scan Density 10 Jamming Range 12 Corruption Containment 12 Armor Coverage 800 Power Shielding 90 Evasion (%) 55 Targeting Accuracy 12 Core Analysis 6 Recoil Reduction 6 Kinecelleration 40 Offensive Hacking 10 Item Schematics ----------------- Assault Drone Bay | -5/Zhirov | Free Exp. Heat Sink | -5/Zhirov | Free Exp. Optical Array | -5/Zhirov | Free Imp. Arc Thrower | -5/Zhirov | Free Robot Schematics ------------------ None Fabricated ------------ Nothing Repaired ---------- Arm. Treads | 64% | -8/Storage | Broken Adv. Treads | 3% | -8/Storage Studied --------- Hvy. Flail | -8/Materials | Hacked Arm. Huge Wheel | -6/Factory | Hacked Alien Tech Used ----------------- Integrated Reactor Transdimensional Reconstructor Achievements -------------- None Challenges ------------ None Game ------ Seed SubatomicOvertunedHarness Manual? 0 Play Time 03:11:24 Cumulative 354.7 hours Start 2026.01.23 @ 12:35:53 End 2026.01.23 @ 17:24:41 Sessions 3 Manual Loads 0 Difficulty Rogue Special Mode None Game No. 286 Rogue 286 Adventurer 0 Explorer 0 Win Type - Total 2 Types 2/0/0/0/0/0/0/0/0/0 Lore% 62 Gallery% 70 Achievement% 48 Wizard Run 0 Options --------- Layout 1 ASCII 0 Keyboard 0 Movement Mouse Keybinds 0 Fullscreen 1 Font 32/SmallcapsGlow Map View 50x35 Zoom Use 0% Tactical HUD 1 Map Filters NONE Filters NONE Steam 1 RUN: d105828f-db96-4d0b-a835-40bc05c9d8df